bitfinex/quotes_SOLUSD_20250305
["timestamp","ask_amount","ask_price","bid_price","bid_amount"]
[1741134433981,32.42815892,144.11,144.09,0.03]
[1741134434676,52.42815892,144.1,144.09,0.03]
[1741134436283,52.71248206,144.1,144.09,0.03]
[1741134436477,20.0,144.06,144.05,0.3836413]
[1741134436676,66.80274098,144.06,144.05,0.3836413]
[1741134437184,34.37458206,144.06,144.05,0.3836413]
[1741134437573,66.80274098,144.06,144.05,0.3836413]
[1741134438173,32.42815892,144.05,144.04,0.03]
[1741134438566,39.37015892,144.05,144.04,0.03]
[1741134439067,32.42815892,144.05,144.04,0.03]
[1741134439270,1.6621,144.06,144.04,0.03]
[1741134439468,32.42815892,144.05,144.04,0.03]
[1741134439981,20.0,144.05,144.04,0.03]
[1741134440182,52.42815892,144.05,144.04,0.03]
[1741134440375,32.42815892,144.05,144.04,0.03]
[1741134440586,32.42815892,144.06,144.04,0.03]
[1741134442870,14.9763,144.1,144.04,0.03]
[1741134442871,32.42815892,144.08,144.04,0.03]
[1741134443079,114.22815892,144.09,144.04,0.03]
[1741134444071,32.42815892,144.08,144.04,0.03]
[1741134444294,114.22815892,144.09,144.04,0.03]
[1741134445495,32.42815892,144.06,144.04,0.03]
[1741134446172,32.42815892,144.05,144.04,0.03]
[1741134447392,81.8,144.12,144.04,0.03]
[1741134447600,81.8,144.11,144.06,32.42815892]
[1741134447790,81.8,144.11,144.04,7.8984]
[1741134447791,32.42815892,144.14,144.08,32.42815892]
[1741134447970,114.22815892,144.14,144.08,32.42815892]
[1741134448289,81.8,144.16,144.1,32.42815892]
[1741134448691,114.22815892,144.16,144.1,32.42815892]
[1741134449074,114.22815892,144.19,144.12,32.42815892]
[1741134449272,81.8,144.19,144.14,32.42815892]
[1741134449693,114.22815892,144.19,144.13,32.42815892]
[1741134450013,81.8,144.19,144.14,32.42815892]
[1741134450228,0.033,144.21,144.15,32.42815892]
[1741134450515,114.22815892,144.2,144.14,32.42815892]
[1741134450701,81.8,144.2,144.15,32.42815892]
[1741134450905,0.033,144.21,144.16,32.42815892]
[1741134451109,0.033,144.21,144.16,39.36445892]
[1741134451308,0.033,144.21,144.17,32.42815892]
[1741134452422,32.46115892,144.21,144.15,32.42815892]
[1741134452719,32.42815892,144.2,144.13,83.1397]
[1741134453026,114.22815892,144.19,144.13,32.42815892]
[1741134453410,114.22815892,144.18,144.12,38.51645892]
[1741134453609,81.8,144.18,144.12,38.51645892]
[1741134453815,81.8,144.18,144.13,32.42815892]
[1741134455000,81.8,144.18,144.12,38.51645892]
[1741134455336,32.42815892,144.17,144.12,6.0883]
[1741134455507,114.22815892,144.17,144.12,6.0883]
[1741134455708,32.42815892,144.16,144.1,32.42815892]
[1741134456099,32.42815892,144.16,144.09,120.96815892]
[1741134456330,114.22815892,144.17,144.1,32.42815892]
[1741134456499,81.8,144.17,144.12,32.42815892]
[1741134456707,114.26115892,144.19,144.12,32.42815892]
[1741134457027,121.19645892,144.19,144.12,32.42815892]
[1741134457323,32.42815892,144.18,144.11,32.42815892]
[1741134457625,32.42815892,144.16,144.1,114.02815892]
[1741134457919,88.7683,144.19,144.08,132.6171992]
[1741134457920,32.42815892,144.15,144.08,132.6171992]
[1741134458127,32.42815892,144.15,144.08,122.24635892]
[1741134458422,32.42815892,144.15,144.09,32.42815892]
[1741134458929,114.22815892,144.17,144.11,32.42815892]
[1741134459225,81.8,144.17,144.12,32.42815892]
[1741134459420,81.8,144.17,144.12,39.36675892]
[1741134459613,88.7362,144.17,144.12,32.42815892]
[1741134459815,121.16435892,144.17,144.11,32.42815892]
[1741134460011,81.8,144.17,144.11,32.42815892]
[1741134460332,0.033,144.19,144.14,32.42815892]
[1741134461607,0.033,144.19,144.15,6.9372]
[1741134462102,0.033,144.19,144.17,32.42815892]
[1741134462612,0.033,144.19,144.18,32.42815892]
[1741134463934,0.033,144.19,144.17,32.42815892]
[1741134464107,0.033,144.19,144.16,6.3828]
[1741134464306,0.033,144.19,144.15,114.02815892]
[1741134464810,0.033,144.19,144.15,81.6]
[1741134465013,0.033,144.19,144.15,88.5371]
[1741134465234,0.033,144.19,144.15,81.6]
[1741134465536,0.033,144.19,144.15,114.02815892]
[1741134465832,0.033,144.19,144.16,32.42815892]
[1741134466208,0.033,144.19,144.18,32.42815892]
[1741134467006,0.033,144.19,144.18,114.31248206]
[1741134467609,0.033,144.19,144.18,121.24818206]
[1741134468532,0.033,144.19,144.18,433.24818206]
[1741134472025,0.033,144.19,144.18,436.6682903]
[1741134473041,5.9979,144.26,144.18,436.6682903]
[1741134473229,5.9979,144.26,144.2,39.36285892]
[1741134473436,38.42605892,144.26,144.2,6.9347]
[1741134474542,32.42815892,144.25,144.19,6.9352]
[1741134474842,32.42815892,144.25,144.19,39.36335892]
[1741134475037,32.42815892,144.25,144.19,32.42815892]
[1741134475231,32.42815892,144.24,144.18,81.6]
[1741134475540,5.9979,144.26,144.18,81.6]
[1741134475541,32.42815892,144.23,144.18,81.6]
[1741134475838,32.42815892,144.24,144.17,39.36425892]
[1741134476037,32.42815892,144.23,144.16,114.02815892]
[1741134476341,32.42815892,144.23,144.16,120.96465892]
[1741134476929,32.42815892,144.21,144.14,32.42815892]
[1741134477142,32.42815892,144.19,144.13,127.51085892]
[1741134477326,32.42815892,144.17,144.12,6.9384]
[1741134477639,32.42815892,144.15,144.1,6.1493]
[1741134478023,32.42815892,144.16,144.1,6.1493]
[1741134478350,32.42815892,144.16,144.1,13.0888]
[1741134478542,32.42815892,144.18,144.11,32.42815892]
[1741134479025,32.42815892,144.18,144.12,6.9386]
[1741134479525,88.7355,144.19,144.12,6.9386]
[1741134479846,32.42815892,144.18,144.12,6.9386]
[1741134480143,114.22815892,144.19,144.12,32.42815892]
[1741134480347,114.22815892,144.19,144.13,32.42815892]
[1741134480660,114.26115892,144.19,144.13,32.42815892]
[1741134480827,81.833,144.19,144.13,32.42815892]
[1741134481029,32.42815892,144.18,144.11,39.36725892]
[1741134481227,32.42815892,144.17,144.11,39.36725892]
[1741134481523,32.42815892,144.15,144.09,6.94]
[1741134481849,32.42815892,144.13,144.06,38.92915892]
[1741134482649,32.42815892,144.13,144.07,6.9409]
[1741134483441,32.42815892,144.12,144.06,13.4423]
[1741134483652,32.42815892,144.12,144.06,6.9413]
[1741134484036,32.42815892,144.12,144.06,39.36945892]
[1741134484452,114.22815892,144.13,144.06,39.36945892]
[1741134484655,81.8,144.13,144.07,32.42815892]
[1741134485950,32.42815892,144.1,144.05,6.9718]
[1741134486650,114.22815892,144.11,144.05,6.9718]
[1741134487054,81.8,144.11,144.07,32.42815892]
[1741134487256,1.5088,144.14,144.08,32.42815892]
[1741134487759,1.5088,144.14,144.09,32.42815892]
[1741134487961,81.8,144.15,144.06,32.71248206]
[1741134487962,81.8,144.15,144.1,32.42815892]
[1741134488147,81.8,144.15,144.09,32.42815892]
[1741134488551,121.16535892,144.15,144.09,6.9401]
[1741134488963,81.8,144.15,144.09,39.36825892]
[1741134489267,32.42815892,144.16,144.09,6.9401]
[1741134489439,32.42815892,144.15,144.09,39.36825892]
[1741134489635,88.7366,144.17,144.09,39.36825892]
[1741134489861,81.8,144.17,144.12,32.42815892]
[1741134490056,114.22815892,144.17,144.11,32.42815892]
[1741134490370,32.42815892,144.16,144.09,120.96825892]
[1741134491365,32.42815892,144.14,144.09,81.6]
[1741134491552,32.42815892,144.13,144.09,81.6]
[1741134491746,32.42815892,144.13,144.07,39.36885892]
[1741134491949,32.42815892,144.12,144.06,6.9414]
[1741134492345,32.42815892,144.11,144.05,39.40005892]
[1741134492755,32.42815892,144.12,144.05,39.40005892]
[1741134493265,81.8,144.13,144.09,32.42815892]
[1741134493569,114.22815892,144.17,144.1,39.36775892]
[1741134495142,32.42815892,144.16,144.1,39.36775892]
[1741134495350,39.36555892,144.15,144.1,6.9396]
[1741134495542,32.42815892,144.15,144.1,6.9396]
[1741134495748,32.42815892,144.14,144.09,81.6]
[1741134496077,32.42815892,144.12,144.05,114.05815892]
[1741134497067,39.36715892,144.12,144.05,120.99995892]
[1741134498067,114.22815892,144.13,144.06,32.42815892]
[1741134498369,32.42815892,144.12,144.06,32.42815892]
[1741134498743,114.22815892,144.13,144.06,344.42815892]
[1741134498942,114.22815892,144.13,144.07,32.42815892]
[1741134499372,114.22815892,144.13,144.08,6.9405]
[1741134500075,81.8,144.13,144.08,6.9405]
[1741134500963,81.8,144.13,144.08,39.36865892]
[1741134501368,32.42815892,144.15,144.08,56.72005892]
[1741134501672,114.22815892,144.16,144.09,32.42815892]
[1741134501849,32.42815892,144.16,144.09,32.42815892]
[1741134502481,32.42815892,144.17,144.1,32.42815892]
[1741134502646,40.95025892,144.18,144.11,32.42815892]
[1741134503264,33.15357219,144.21,144.15,32.42815892]
[1741134503265,55.23513111,144.21,144.15,32.42815892]
[1741134503465,22.80697219,144.21,144.15,32.42815892]
[1741134504156,0.033,144.19,144.15,32.42815892]
[1741134504364,0.033,144.19,144.16,32.42815892]
[1741134505040,0.033,144.19,144.16,6.9364]
[1741134505244,0.033,144.19,144.14,32.42815892]
[1741134505447,0.033,144.19,144.13,32.42815892]
[1741134505977,0.033,144.19,144.14,32.42815892]
[1741134506274,0.033,144.19,144.13,32.42815892]
[1741134506959,0.033,144.19,144.14,32.42815892]
[1741134507346,0.033,144.19,144.13,32.42815892]
[1741134507543,0.033,144.19,144.13,344.42815892]
[1741134507776,0.033,144.19,144.16,32.42815892]
[1741134507982,0.033,144.19,144.14,32.42815892]
[1741134508953,0.033,144.19,144.16,6.9367]
[1741134509459,0.033,144.19,144.16,39.36485892]
[1741134510065,0.033,144.19,144.18,32.42815892]
[1741134510769,0.033,144.19,144.16,24.2785]
[1741134510968,0.033,144.19,144.16,6.9367]
[1741134513146,0.033,144.19,144.13,17.3444]
[1741134513147,0.033,144.19,144.14,32.42815892]
[1741134513379,0.033,144.19,144.15,6.937]
[1741134516078,0.033,144.19,144.15,39.36515892]
[1741134516286,0.033,144.19,144.16,32.42815892]
[1741134517167,0.033,144.19,144.18,32.42815892]
[1741134517771,0.033,144.19,144.17,32.42815892]
[1741134518381,0.033,144.19,144.18,6.9357]
[1741134522279,0.033,144.19,144.16,32.42815892]
[1741134522581,0.033,144.19,144.17,6.9362]
[1741134526462,0.033,144.19,144.16,6.9367]
[1741134528683,0.033,144.19,144.18,20.53748891]
[1741134529190,1.5001,144.25,144.18,20.53748891]
[1741134529370,1.5001,144.25,144.19,20.25316577]
[1741134529570,21.75326577,144.25,144.19,20.25316577]
[1741134530185,21.75326577,144.25,144.2,6.9348]
[1741134530704,33.90406832,144.25,144.2,6.9348]
[1741134531092,1.5001,144.25,144.2,6.9348]
[1741134531269,1.5001,144.25,144.2,39.33876832]
[1741134531870,1.5001,144.25,144.2,6.9348]
[1741134537490,114.23696832,144.26,144.2,39.33876832]
[1741134538297,81.833,144.26,144.2,39.33876832]
[1741134538586,114.23696832,144.26,144.2,39.33876832]
[1741134539488,32.40396832,144.25,144.19,39.33906832]
[1741134539686,32.40396832,144.23,144.19,6.9351]
[1741134540381,32.40396832,144.24,144.19,6.9351]
[1741134540579,32.40396832,144.25,144.19,6.9351]
[1741134541280,114.23696832,144.26,144.19,56.67726832]
[1741134541474,121.16886832,144.26,144.19,56.67726832]
[1741134541680,32.40396832,144.25,144.19,39.33906832]
[1741134542270,32.40396832,144.25,144.19,6.9351]
[1741134542675,32.40396832,144.25,144.19,39.33906832]
[1741134543297,32.40396832,144.25,144.19,6.9351]
[1741134543298,39.33636832,144.25,144.19,6.9351]
[1741134543798,32.40396832,144.25,144.19,6.9351]
[1741134544499,39.33636832,144.25,144.19,6.9351]
[1741134544900,32.40396832,144.22,144.17,6.9358]
[1741134545097,114.20396832,144.23,144.17,6.9358]
[1741134546185,81.8,144.23,144.17,39.33976832]
[1741134546381,81.8,144.23,144.18,32.40396832]
[1741134547099,81.8,144.23,144.19,32.40396832]
[1741134547693,81.8,144.23,144.19,6.9352]
[1741134548582,32.40396832,144.25,144.19,6.9352]
[1741134549901,32.40396832,144.25,144.19,24.2734]
[1741134550504,20.25374415,144.25,144.19,24.2734]
[1741134551185,27.21864415,144.26,144.19,44.52714415]
[1741134551599,20.28674415,144.26,144.19,44.52714415]
[1741134551992,0.033,144.26,144.19,44.52714415]
[1741134552303,20.28674415,144.26,144.19,44.52714415]
[1741134552689,20.25374415,144.25,144.19,6.9352]
[1741134552888,20.25374415,144.23,144.18,6.9356]
[1741134553094,20.25374415,144.21,144.17,6.936]
[1741134553690,20.25374415,144.22,144.16,6.9667]
[1741134553896,81.8,144.23,144.17,20.25374415]
[1741134554309,81.8,144.23,144.18,20.25374415]
[1741134555193,81.8,144.23,144.19,20.28374415]
[1741134555395,20.25374415,144.25,144.19,20.28374415]
[1741134556105,20.25374415,144.25,144.2,6.9348]
[1741134556310,20.28674415,144.25,144.2,6.9348]
[1741134557185,20.25374415,144.24,144.2,6.9348]
[1741134557380,0.033,144.25,144.2,6.9348]
[1741134557381,20.28674415,144.25,144.2,6.9348]
[1741134557702,20.25374415,144.21,144.19,0.03]
[1741134557888,20.25374415,144.2,144.19,0.03]
[1741134558504,20.25374415,144.21,144.19,0.03]
[1741134558882,20.25374415,144.22,144.19,0.03]
[1741134559087,27.18724415,144.23,144.19,0.03]
[1741134559291,108.98724415,144.23,144.19,0.03]
[1741134559495,20.25374415,144.22,144.19,0.03]
[1741134559701,102.05374415,144.21,144.19,0.03]
[1741134559888,20.25374415,144.2,144.19,0.03]
[1741134560787,108.98844415,144.21,144.19,0.03]
[1741134563395,25.86243594,144.23,144.19,0.03]
[1741134564005,10.58378609,144.23,144.19,0.03]
[1741134564513,10.58378609,144.23,144.19,20.28374415]
[1741134565110,10.58378609,144.23,144.2,6.9348]
[1741134565324,30.83753024,144.23,144.19,6.9651]
[1741134565914,102.05374415,144.24,144.19,6.9651]
[1741134566802,10.61678609,144.25,144.23,20.25374415]
[1741134567115,10.61678609,144.25,144.24,20.25374415]
[1741134567486,10.61678609,144.25,144.23,20.25374415]
[1741134568618,10.61678609,144.25,144.24,6.9328]
[1741134568910,0.033,144.25,144.24,6.9328]
[1741134569310,0.033,144.25,144.22,6.9338]
[1741134570013,0.033,144.25,144.22,27.18754415]
[1741134572319,0.033,144.25,144.23,20.25374415]
[1741134572523,0.033,144.25,144.24,6.9328]
[1741134574404,0.033,144.25,144.2,25.0749]
[1741134574405,0.033,144.25,144.2,26.34104415]
[1741134574734,0.033,144.25,144.2,13.022]
[1741134575909,0.033,144.25,144.2,33.27574415]
[1741134576110,0.033,144.25,144.21,20.25374415]
[1741134576928,0.033,144.25,144.2,33.27574415]
[1741134577404,0.033,144.25,144.21,20.25374415]
[1741134577827,0.033,144.25,144.21,27.18764415]
[1741134578338,0.033,144.25,144.24,20.25374415]
[1741134580001,0.033,144.25,144.24,27.18654415]
[1741134581439,0.033,144.25,144.23,20.25374415]
[1741134582522,0.033,144.25,144.24,6.9328]
[1741134583540,0.033,144.25,144.24,27.18654415]
[1741134584543,0.033,144.25,144.23,6.9333]
[1741134584737,0.033,144.25,144.23,27.18704415]
[1741134584912,0.033,144.25,144.24,20.25374415]
[1741134585542,0.033,144.25,144.23,6.9333]
[1741134585711,0.033,144.25,144.23,27.18704415]
[1741134586217,0.033,144.25,144.22,20.25374415]
[1741134586416,0.033,144.25,144.23,20.25374415]
[1741134586615,0.033,144.25,144.24,27.18654415]
[1741134590635,0.033,144.25,144.22,6.9338]
[1741134590812,0.033,144.25,144.22,27.18754415]
[1741134591015,0.033,144.25,144.24,20.25374415]
[1741134591730,0.033,144.25,144.22,24.2684]
[1741134591932,0.033,144.25,144.24,20.25374415]
[1741134593321,0.033,144.25,144.24,27.18654415]
[1741134596840,0.033,144.29,144.25,0.28432314]
[1741134597130,0.033,144.29,144.28,20.25374415]
[1741134597339,0.033,144.29,144.27,20.25374415]
[1741134598635,0.033,144.29,144.28,6.9309]
[1741134600121,0.033,144.29,144.25,20.25374415]
[1741134600440,0.033,144.29,144.25,6.9324]
[1741134601115,0.033,144.29,144.25,27.18614415]
[1741134601627,20.28674415,144.29,144.24,6.9327]
[1741134602541,0.033,144.29,144.24,6.9327]
[1741134602915,0.033,144.29,144.24,19.886652]
[1741134603117,0.033,144.29,144.26,12.953952]
[1741134603315,0.033,144.29,144.27,12.953952]
[1741134603915,0.033,144.29,144.28,12.953952]
[1741134604519,0.033,144.29,144.28,20.2225412]
[1741134604932,0.033,144.32,144.31,20.0]
[1741134605115,0.033,144.34,144.31,121.8225412]
[1741134605315,0.033,144.34,144.33,20.2225412]
[1741134606228,0.033,144.34,144.33,102.10686434]
[1741134606537,0.033,144.34,144.33,101.8225412]
[1741134607842,0.033,144.34,144.33,108.7510412]
[1741134608040,0.033,144.34,144.33,420.7510412]
[1741134608222,0.033,144.34,144.33,81.6]
[1741134609236,0.033,144.34,144.33,101.8225412]
[1741134610141,0.033,144.34,144.33,81.6]
[1741134610528,0.033,144.34,144.31,27.1519412]
[1741134611420,0.033,144.34,144.33,20.2225412]
[1741134612228,0.033,144.34,144.33,27.1510412]
[1741134612743,0.033,144.37,144.33,27.1510412]
[1741134612744,0.033,144.37,144.36,20.28432314]
[1741134612944,0.033,144.41,144.39,26.1434]
[1741134613134,21.16757219,144.46,144.41,40.4450824]
[1741134613445,21.16757219,144.46,144.43,40.2225412]
[1741134613644,21.03557219,144.46,144.43,40.2225412]
[1741134613827,17.03369114,144.46,144.45,20.2225412]
[1741134614024,12.03341326,144.46,144.45,20.2225412]
[1741134614243,12.03341326,144.46,144.45,109.02966434]
[1741134614640,12.03341326,144.46,144.45,420.7453412]
[1741134615022,0.033,144.47,144.45,420.7453412]
[1741134615828,0.033,144.47,144.46,20.50686434]
[1741134616029,10.68509044,144.48,144.47,0.28432314]
[1741134616343,10.68509044,144.48,144.47,47.42866434]
[1741134616721,10.68509044,144.48,144.47,47.1443412]
[1741134616925,10.68509044,144.48,144.47,26.9218]
[1741134617132,10.68509044,144.48,144.47,47.1443412]
[1741134618555,10.68509044,144.48,144.47,47.42866434]
[1741134618739,4.438e-05,144.5,144.47,155.76370554]
[1741134618932,4.438e-05,144.5,144.49,20.50686434]
[1741134619140,0.033,144.52,144.5,0.28432314]
[1741134619452,0.033,144.52,144.51,20.2225412]
[1741134619741,0.0001,144.52,144.51,20.50686434]
[1741134620252,0.0001,144.52,144.51,27.42676434]
[1741134620439,0.0001,144.52,144.51,109.02676434]
[1741134620951,81.833,144.61,144.52,0.28432314]
[1741134621147,102.0555412,144.61,144.55,20.2225412]
[1741134621346,81.833,144.61,144.56,20.2225412]
[1741134621824,81.833,144.61,144.55,20.2225412]
[1741134622029,20.2225412,144.59,144.52,20.2225412]
[1741134622241,81.8,144.58,144.52,20.2225412]
[1741134622449,81.8,144.58,144.53,20.2225412]
[1741134622761,81.8,144.58,144.55,20.2225412]
[1741134623049,81.8,144.6,144.55,20.2225412]
[1741134623234,81.8,144.6,144.54,20.2225412]
[1741134623853,81.8,144.6,144.56,20.2225412]
[1741134624057,81.8,144.6,144.55,20.2225412]
[1741134624236,108.9382412,144.6,144.54,20.2225412]
[1741134624434,102.0225412,144.6,144.53,20.2225412]
[1741134624665,81.8,144.6,144.55,20.2225412]
[1741134625535,88.7157,144.6,144.54,20.2225412]
[1741134626049,81.8,144.6,144.55,20.2225412]
[1741134626549,88.7156,144.6,144.55,20.2225412]
[1741134627050,81.8,144.6,144.55,20.2225412]
[1741134627452,81.8,144.59,144.49,120.38984409]
[1741134627630,1.5806,144.56,144.51,20.2225412]
[1741134628143,1.5806,144.56,144.52,20.2225412]
[1741134628833,1.5806,144.56,144.51,20.2225412]
[1741134629034,28.7209412,144.56,144.5,20.2225412]
[1741134629435,28.7209412,144.56,144.49,20.2225412]
[1741134629436,20.2225412,144.55,144.49,20.2225412]
[1741134629930,15.044,144.56,144.47,0.03]
[1741134629931,102.0225412,144.54,144.47,0.03]
[1741134630135,102.0225412,144.53,144.47,20.2525412]
[1741134630358,20.2225412,144.51,144.47,0.03]
[1741134630572,20.2225412,144.49,144.47,0.03]
[1741134630849,108.9438412,144.48,144.47,0.03]
[1741134631054,27.1438412,144.48,144.47,0.03]
[1741134632560,20.2225412,144.48,144.47,0.03]
[1741134633061,20.2225412,144.49,144.47,0.03]
[1741134633271,81.8,144.5,144.47,0.03]
[1741134633559,102.0225412,144.5,144.47,0.03]
[1741134634268,81.8,144.5,144.47,0.03]
[1741134634957,20.2225412,144.49,144.47,0.03]
[1741134635562,20.2225412,144.51,144.47,0.03]
[1741134635772,20.2225412,144.53,144.47,0.03]
[1741134636551,20.2225412,144.53,144.47,40.2525412]
[1741134636737,20.2225412,144.53,144.47,20.03]
[1741134636950,20.2225412,144.51,144.47,20.03]
[1741134637356,20.2225412,144.52,144.47,26.9517]
[1741134638645,32.28141689,144.51,144.47,26.9517]
[1741134638847,81.8,144.52,144.47,26.9517]
[1741134639248,81.8,144.52,144.47,76.53771689]
[1741134639549,81.8,144.52,144.48,32.28141689]
[1741134639957,81.8,144.55,144.49,32.28141689]
[1741134640156,81.8,144.55,144.5,32.28141689]
[1741134640344,81.8,144.55,144.49,32.28141689]
[1741134640544,81.8,144.55,144.5,32.28141689]
[1741134640867,114.11441689,144.55,144.49,32.28141689]
[1741134641374,81.833,144.55,144.5,39.20181689]
[1741134641559,81.833,144.55,144.5,6.9204]
[1741134641753,81.833,144.55,144.5,39.20181689]
[1741134641975,0.033,144.55,144.52,32.28141689]
[1741134643176,32.31441689,144.55,144.5,88.5204]
[1741134643361,32.28141689,144.54,144.49,6.9208]
[1741134643563,114.11441689,144.55,144.49,6.9208]
[1741134643758,114.11441689,144.55,144.49,39.20221689]
[1741134644360,32.28141689,144.54,144.49,6.9208]
[1741134644568,114.11441689,144.55,144.49,6.9208]
[1741134645274,32.28141689,144.53,144.48,6.9212]
[1741134645469,32.28141689,144.51,144.47,0.03]
[1741134645666,32.28141689,144.52,144.47,0.03]
[1741134645881,32.28141689,144.52,144.47,6.9518]
[1741134646656,114.08141689,144.53,144.47,6.9518]
[1741134646874,33.93501689,144.52,144.47,6.9518]
[1741134647467,33.93501689,144.52,144.47,0.03]
[1741134648381,81.8,144.53,144.48,32.28141689]
[1741134648976,81.8,144.53,144.49,6.9208]
[1741134649483,39.20031689,144.53,144.48,6.9213]
[1741134649776,32.28141689,144.52,144.47,6.9517]
[1741134650286,39.20031689,144.53,144.47,6.9517]
[1741134650790,32.28141689,144.53,144.47,6.9517]
[1741134650972,114.11441689,144.55,144.48,32.28141689]
[1741134651561,32.28141689,144.54,144.48,32.28141689]
[1741134652085,32.28141689,144.54,144.49,6.9208]
[1741134652272,32.31441689,144.55,144.49,6.9208]
[1741134653381,0.033,144.54,144.49,6.9208]
[1741134655287,0.033,144.54,144.49,318.9208]
[1741134655578,0.033,144.54,144.49,351.20221689]
[1741134655990,0.033,144.54,144.49,318.9208]
[1741134656488,0.033,144.54,144.49,351.20221689]
[1741134656977,0.033,144.54,144.49,318.9208]
[1741134657185,0.033,144.54,144.49,6.9208]
[1741134658587,0.033,144.54,144.49,10.39253131]
[1741134658891,20.16806034,144.53,144.48,13.1465]
[1741134659186,20.20106034,144.54,144.48,13.1465]
[1741134660093,20.16806034,144.53,144.48,6.2254]
[1741134660473,20.16806034,144.53,144.48,13.1467]
[1741134660863,88.7516,144.54,144.48,13.1467]
[1741134660864,102.00106034,144.54,144.48,13.1467]
[1741134661070,81.833,144.54,144.48,50.61816034]
[1741134661589,81.833,144.54,144.5,20.16806034]
[1741134662286,81.833,144.54,144.49,20.16806034]
[1741134662471,81.833,144.54,144.48,33.31476034]
[1741134662671,20.16806034,144.53,144.48,13.1467]
[1741134663190,102.00106034,144.54,144.48,13.1467]
[1741134664489,20.16806034,144.53,144.48,6.2254]
[1741134664669,20.16806034,144.53,144.48,13.1466]
[1741134664986,102.00106034,144.54,144.48,13.1466]
[1741134665690,20.16806034,144.53,144.48,13.1466]
[1741134666787,81.833,144.54,144.48,13.1466]
[1741134666982,0.033,144.54,144.49,20.16806034]
[1741134667298,0.033,144.54,144.5,20.16806034]
[1741134667797,0.033,144.54,144.51,40.16806034]
[1741134668301,0.033,144.54,144.51,332.0]
[1741134668497,0.033,144.54,144.51,352.16806034]
[1741134668795,0.033,144.54,144.52,27.08746034]
[1741134668972,0.033,144.54,144.53,20.16806034]
[1741134669177,0.033,144.54,144.52,27.08746034]
[1741134669910,0.033,144.54,144.52,6.9194]
[1741134670079,0.033,144.54,144.51,26.9197]
[1741134670400,20.20106034,144.54,144.48,87.8254]
[1741134670694,20.20106034,144.54,144.47,0.03]
[1741134670695,20.16806034,144.49,144.47,0.03]
[1741134670888,20.16806034,144.48,144.47,0.03]
[1741134673414,47.25742068,144.48,144.47,0.03]
[1741134673611,47.54174382,144.48,144.47,0.03]
[1741134675194,0.28432314,144.44,144.33,20.19806034]
[1741134675397,20.16806034,144.37,144.33,0.03]
[1741134675811,20.16806034,144.37,144.33,6.9585]
[1741134676027,20.16806034,144.38,144.33,6.9585]
[1741134676529,20.16806034,144.39,144.33,6.9585]
[1741134676734,32.33931675,144.39,144.33,6.9585]
[1741134677303,32.33931675,144.4,144.34,32.33931675]
[1741134677530,32.33931675,144.4,144.33,24.2799]
[1741134677531,32.33931675,144.43,144.36,32.33931675]
[1741134678006,32.33931675,144.43,144.37,32.33931675]
[1741134678212,32.33931675,144.43,144.36,52.33931675]
[1741134678407,32.33931675,144.42,144.36,52.33931675]
[1741134679010,81.8,144.45,144.36,52.33931675]
[1741134679011,32.33931675,144.43,144.37,6.9266]
[1741134679194,114.13931675,144.47,144.41,32.33931675]
[1741134679398,81.8,144.47,144.41,52.33931675]
[1741134679830,114.13931675,144.47,144.41,52.33931675]
[1741134680126,81.8,144.47,144.41,52.33931675]
[1741134680432,81.8,144.47,144.42,6.9242]
[1741134682439,81.8,144.47,144.42,56.57411675]
[1741134683234,81.8,144.47,144.42,6.9242]
[1741134683438,32.33931675,144.43,144.39,6.9256]
[1741134683752,32.33931675,144.42,144.39,6.9256]
[1741134684553,32.33931675,144.42,144.38,6.1512]
[1741134684741,32.33931675,144.43,144.38,6.1512]
[1741134684926,32.33931675,144.4,144.34,121.77841675]
[1741134685116,32.33931675,144.4,144.33,6.9584]
[1741134685117,32.33931675,144.37,144.33,6.9584]
[1741134685313,32.33931675,144.37,144.33,0.03]
[1741134685616,81.8,144.4,144.33,59.29771675]